{"text_format":"1","workbook":"xlsx","n_sheets":5,"sheets":["采购公告摘录表","供应商须知前附表","评审办法","合同主要条款摘要表","分项报价表"],"not_rendered":{"charts":0,"images":24,"macros":0,"external_links":0,"defined_names":1,"comments":1,"pivot_tables":0},"unopened":[],"bounds":{"document_bytes":16777216,"sheet_cells":100000,"rows_first":2000,"rows_last":500,"rows_between":2000,"halvings":0,"cell_chars":16384,"cell_head_chars":4096},"cells_cut":0,"cells_raw":0,"read":"whole","date_system":"1900"}

{"sheet":"采购公告摘录表","index":0,"n_rows":33,"n_cols":3,"rows_kept":33,"cut":false,"hidden":false,"merged":[[0,0,0,2],[1,0,1,2],[7,0,7,2],[10,0,10,2],[19,0,19,2],[26,0,26,2]]}
["采购公告摘录表"]
["一、项目介绍"]
[1,"项目概况","浩日格吐风电场:内蒙古通辽市科左中旗珠日河牧场三分场东侧6公里。总装机容量300.15MW。"]
[2,"交货/施工/服务地点","浩日格吐风电场"]
[3,"采购内容","华能通辽公司浩日格吐风电场2022年12月份19项生产物资采购"]
[4,"交货期/施工期/服务期","签订合同后30天内到货"]
[5,"其他需要说明内容","无"]
["二、报价须知"]
[1,"供应商通用资格要求","见标准采购询价文件"]
[2,"供应商专用资格要求：","无"]
["三、基本信息"]
[1,"采购方案名称","华能通辽公司浩日格吐风电场2022年12月份生产物资采购"]
[2,"采购编号","/"]
[3,"采购单位","华能新能源股份有限公司蒙东分公司"]
[4,"采购项目类型","物资"]
[5,"寻源类型","合格供应商公开"]
[6,"寻源方式","询价"]
[7,"评价原则","经评审的最低价法"]
[8,"是否紧急采购","否"]
["四、报价要求"]
[1,"报价开始时间","以华能集团电子商务平台发布时间为准"]
[2,"报价截止时间","以华能集团电子商务平台发布时间为准"]
[3,"答疑／澄清时间","以华能集团电子商务平台发布时间为准"]
[4,"报价截止前是否允许    供应商修改报价","是"]
[5,"是否缴纳保证金","不涉及"]
[6,"结算币种","人民币"]
["六、联系人信息"]
[1,"联系人","王立"]
[2,"询价单位","华能新能源股份有限公司蒙东分公司"]
[3,"联系电话","0475-6195067"]
[4,"传真","/"]
[5,"手机",13464884543]
[6,"联系地址","内蒙古自治区通辽市科尔沁区青龙山大街与胜利北路交汇华能新能源蒙东分公司"]

{"sheet":"供应商须知前附表","index":1,"n_rows":44,"n_cols":3,"rows_kept":44,"cut":false,"hidden":false,"merged":[[0,0,0,2],[43,0,43,2],[2,0,7,0],[9,0,11,0],[12,0,13,0],[14,0,15,0],[16,0,17,0],[18,0,21,0],[22,0,23,0],[24,0,32,0],[34,0,35,0],[37,0,38,0],[39,0,41,0],[2,1,7,1],[9,1,11,1],[12,1,13,1],[14,1,15,1],[16,1,17,1],[18,1,21,1],[22,1,23,1],[24,1,32,1],[34,1,35,1],[37,1,38,1],[39,1,41,1]]}
["供应商须知前附表"]
["条款号","条款名称","编列内容"]
[2.1,"采购人及联系方式","采 购 人：华能新能源股份有限公司蒙东分公司"]
[null,null,"地    址：内蒙古自治区通辽市科尔沁区青龙山大街与胜利北路交汇华能新能源蒙东分公司"]
[null,null,"邮    编：028000"]
[null,null,"电    话：见采购公告摘录表"]
[null,null,"电子邮箱：mengdsw@126.com"]
[null,null,"联 系 人：见采购公告摘录表"]
[2.4,"采购代理机构及联系方式（如有）","无"]
[4.1,"踏勘现场","√不组织"]
[null,null,"□组织，踏勘时间：            "]
[null,null,"踏勘集中地点：                "]
[6.1,"采购文件的澄清、修改、补充","供应商需在华能电子商务平台显示的澄清截止时间24小时前在华能电子商务平台提出澄清问题。"]
[null,null,"对采购文件进行的澄清、修改、补充距报价截止时间不足24小时的，将相应延长报价截止时间。"]
[9.6,"最高限价","√无"]
[null,null,"□有，最高限价：                     "]
[9.7,"采购代理服务费","√无"]
[null,null,"□有，服务费收取标准： 取费按类型（工程、货物或服务）、分标段（包）参照《招标代理服务收费管理暂行办法》（计价格〔2002〕1980号）中规定的计费原则标准计取。"]
[9.8,"供应商报价的其他要求","采购人指定的增值税税种："]
[null,null,"√提供增值税专用发票；"]
[null,null,"□提供增值税普通发票；"]
[null,null,"□不限制。"]
[10,"报价货币","√人民币"]
[null,null,"□其他：                             "]
[11.1,"响应保证金","√无"]
[null,null,"□有，按照以下方式：                 "]
[null,null,"响应保证金的金额：          "]
[null,null,"响应保证金的形式：          "]
[null,null,"响应保证金的递交截止时间为：华能电子商务平台采购公告中显示的报价截止时间。"]
[null,null,"开户银行及账号如下："]
[null,null,"账户名称：                 "]
[null,null,"开户银行：                 "]
[null,null,"账    号：                 "]
[12.1,"采购有效期","自响应文件递交截止时间起 90 个日历日"]
[13,"响应文件递交截止时间及地点","响应文件递交截止时间：以华能电子商务平台显示的递交截止时间为准"]
[null,null,"响应文件递交地址：华能电子商务平台（http://ec.chng.com.cn/）"]
[16,"开启响应文件","开启响应文件时间：同响应文件递交截止时间"]
[18,"成交供应商的推荐原则","√一个采购项目，只能推荐一个成交供应商。"]
[null,null,"□一个采购项目，按照物料行，可以推荐多个成交供应商。"]
[21.3,"履约担保","√不提供"]
[null,null,"□提供，履约担保金额：                    "]
[null,null,"履约担保形式：                    "]
[22,"其他需要补充的内容"]
["备注：供应商须知前附表是对供应商须知的具体补充和修改，如有矛盾，应以本表为准。"]

{"sheet":"评审办法","index":2,"n_rows":3,"n_cols":3,"rows_kept":3,"cut":false,"hidden":false,"merged":[[0,0,0,2]]}
["评审办法"]
["序号","条款名称","具体内容"]
["四","推荐成交供应商","\n☑经评审的最低价法 \n   本次评审采用经评审的最低价法。询价小组对满足采购文件实质要求的响应文件，按照经评审的价格（算术性修正后的价格）由低到高的顺序依次推荐1～3名成交候选供应商。若经评审的价格相同，按满足资格条件业绩要求的业绩数量多者优先；如业绩数量也相等时，由询价小组投票确定。。 \n\n\n\n\n"]

{"sheet":"合同主要条款摘要表","index":3,"n_rows":7,"n_cols":3,"rows_kept":7,"cut":false,"hidden":false,"merged":[[0,0,0,2]]}
["合同主要条款摘要表"]
["序号","合同条款","主要内容"]
[1,"合同范围",{"$f":"采购公告摘录表!C5","v":"华能通辽公司浩日格吐风电场2022年12月份19项生产物资采购"}]
[2,"合同价款的支付","甲乙双方通过银行转账方式或承兑汇票方式进行，甲方经甲方银行付至乙方银行账户。\n①若单个风电场合计中标金额在5万元及以上，无预付款、到货款90%、质保金10%；\n②若单个风电场合计中标金额在5万元以下（不含5万元），无预付款，到货款100%。"]
[3,"工期","中标单位自签订合同之日起30日内到货，如未按期完成供货将按蒙东分公司供应商管理办法对供应商进行考核，采取对其供应商暂停服务或停止服务等方式暂停合作。"]
[4,"质量保证期","全部到货并通过验收后进入质保期，质保期1年\n（含无质保金物资）"]
[5,"其他","本项目为落地交货，乙方负责卸货"]

{"sheet":"分项报价表","index":4,"n_rows":22,"n_cols":18,"rows_kept":22,"cut":false,"hidden":false,"merged":[[0,0,0,17],[21,0,21,10],[21,11,21,12],[21,13,21,14]]}
["分项报价表"]
["序号","风电场","备件名称","物资编码","物料描述","型号","品牌","风机品牌","备件所属系统/版本号","数量","单位","不含税单价（元）","不含税合价（元）","含税单价（元）","含税合价（元）","外观照片","名牌照片","备注"]
[1,"浩日格吐风电场","限位开关",100935521,"位置控制开关\\LS-11+LS-XRL","LS-11+LS-XRL","穆勒","中车","控制系统",10,"个",{"$f":"ROUND(N3/1.13,2)","v":0},{"$f":"L3*$J3","v":0},null,{"$f":"N3*$J3","v":0}]
[2,"浩日格吐风电场","超速继电器",100966083,"电流继电器\\MS22-Ri\\20~250VAC／DC\\0~20MA／4~20MA","MS22-Ri","图尔克","中车","控制系统",6,"个",{"$f":"ROUND(N4/1.13,2)","v":0},{"$f":"L4*$J4","v":0},null,{"$f":"N4*$J4","v":0}]
[3,"浩日格吐风电场","变桨变频器",101042058,"变频器\\14F5M1E-Y00D\\400VAC\\23.1A","14F5M1E-Y00D","KEB","华锐","变桨系统",4,"个",0,0,null,0]
[4,"浩日格吐风电场","防冻液",101154511,"防冻液制品\\OAT-45\\4L","OAT-45\\","壳牌","中车","发电机系统",300,"桶",0,0,null,0]
[5,"浩日格吐风电场","抹布",101164617,"抹布和类似布\\抹布\\白色纯棉","棉质",null,"其他","/",300,"KG",0,0,null,0]
[6,"浩日格吐风电场","水冷温控阀",101203808,"节流阀\\TB25","TB25","HYDAC","中车","发电机系统",20,"个",0,0,null,0]
[7,"浩日格吐风电场","温度开关",101333436,"温度开关\\FLZ510／1K\\0~60℃","FLZ510","pfannenberg","中车","控制系统",15,"个",0,0,null,0]
[8,"浩日格吐风电场","变桨柜温度模块",101379708,"信号继电器\\CC-ERTD／I\\24VDC","CC-ERTD","ABB","中车","变桨系统",10,"个",0,0,null,0]
[9,"浩日格吐风电场","变桨变频器",101432199,"变频器\\ECSCA064C4V\\400VAC\\20A","ECSCA064C4V","伦茨","中车","变桨系统",8,"个",0,0,null,0]
[10,"浩日格吐风电场","灭火弹",101601240,"其它灭火器\\灭火弹\\悬挂式\\FFX-ACT0.15","FFX-ACT0.15","成威","其他","/",150,"个",0,0,null,0]
[11,"浩日格吐风电场","齿轮箱油泵",101673412,"齿轮泵\\R45／80FL-Z-DB-R-SO-436630","R45／80FL-Z-DB-R-SO-436630","英德诺曼","中车","传动系统",7,"个",0,0,null,0]
[12,"浩日格吐风电场","水压表",101746377,"风力机备件\\水压表\\3 ／8″axial／0-0.25／4bar","0-4bar","FLEXCON","华锐","变频系统",10,"个",0,0,null,0]
[13,"浩日格吐风电场","偏航电机",101764997,"10kW以下交流电动机\\BN100LA4\\2.2KW\\380V\\5.3A\\立式\\1350r／min\\F\\IP55","BN 100LA4 FD","邦飞利","中车","偏航系统",2,"个",0,0,null,0]
[14,"浩日格吐风电场","机械锁",101804790,"电磁锁\\WB75-A","WB75-A","ABB","中车","控制系统",5,"个",0,0,null,0]
[15,"浩日格吐风电场","转子锁",101811642,"转换开关\\CH10\\24v","CH10",null,"中车","控制系统",5,"个",0,0,null,0]
[16,"浩日格吐风电场","温控阀",101838079,"节流阀\\STV.32.33803","STV.32.33803","英特诺曼","中车","传动系统",10,"个",0,0,null,0]
[17,"浩日格吐风电场","花键",101894244,"联轴器\\SPIDEXO28／38","SPIDEXO28／38","郎高","中车","传动系统",8,"个",0,0,null,0]
[18,"浩日格吐风电场","电加热器",102135235,"电加热器\\ZSEYPW\\400W\\220VAC","ZSEYPW  AC220V-400W","ZSEYPW","中车","控制系统",110,"个",0,0,null,0]
[19,"浩日格吐风电场","工业内窥镜",102544303,"其他专用仪器仪表\\工业内窥镜\\JT-8150Z","JT-8150Z","吉泰科仪","其他","其他",1,"套",0,0,null,0]
["合计(元）",null,null,null,null,null,null,null,null,null,null,{"$f":"SUBTOTAL(109,M3:M21)","v":0},null,{"$f":"SUBTOTAL(109,O3:O21)","v":0},null,null,"签订合同后30天内到货","电商平台填报价格时请填报含税价格"]